[Event "Int SVK-ch Open 2020"]
[Site "Drienica"]
[Date "2020.08.09"]
[Round "3.25"]
[White "Panko, Eduard"]
[Black "Holicky, Miroslav"]
[Result "1/2-1/2"]
[ECO "A03"]
[WhiteElo "1991"]
[BlackElo "1805"]
[Annotator "ChessBase"]
[PlyCount "45"]
[EventDate "2020.08.07"]
[EventType "swiss"]
[EventCountry "SVK"]
[SourceTitle "playchess.com"]
[Source "ChessBase"]
[SourceQuality "1"]
[TimeControl "40/5400+30:1800+30"]

1. b3 {[%emt 0:00:00]} d5 {[%emt 0:02:41]} 2. Bb2 {[%emt 0:00:00]} Nd7 {[%emt 0:00:52]} 3. f4 {[%emt 0:01:42]} Ngf6 {[%emt 0:00:35]} 4. Nf3 {[%emt 0:00:23]} e6 {[%emt 0:01:07]} 5. e3 {[%emt 0:00:13]} Be7 {[%emt 0:04:00]} 6. Be2 {[%emt 0:00:33]} b6 {[%emt 0:03:23]} 7. Bb5 {[%emt 0:03:59]} O-O {[%emt 0:02:42]} 8. O-O {[%emt 0:02:05]} Bb7 {[%emt 0:07:02]} 9. Bxd7 {[%emt 0:00:22]} Nxd7 {[%emt 0:02:42]} 10. d3 {[%emt 0:00:32]} Bf6 {[%emt 0:06:07]} 11. Ne5 {[%emt 0:03:29]} Bxe5 {[%emt 0:02:06]} 12. fxe5 {[%emt 0:02:23]} Qg5 {[%emt 0:02:25]} 13. Rf3 {[%emt 0:06:20]} Qh5 {[%emt 0:07:50]} 14. Qe1 {[%emt 0:08:21]} c5 {[%emt 0:02:44]} 15. Rh3 {[%emt 0:02:08]} Qg5 {[%emt 0:03:55]} 16. Qe2 {[%emt 0:03:53]} c4 {[%emt 0:12:31]} 17. Nd2 {[%emt 0:23:18]} cxd3 {[%emt 0:04:38]} 18. cxd3 {[%emt 0:00:52]} Ba6 {[%emt 0:01:47]} 19. Rg3 {[%emt 0:03:26]} Qe7 {[%emt 0:04:16]} 20. Qg4 {[%emt 0:13:40]} f5 {[%emt 0:11:17]} 21. exf6 {[%emt 0:04:51]} Nxf6 {[%emt 0:00:11]} 22. Bxf6 {[%emt 0:00:16]} Rxf6 {[%emt 0:00:21]} 23. d4 {[%emt 0:07:07]} 1/2-1/2

[Event "Int SVK-ch Open 2020"]
[Site "Drienica"]
[Date "2020.08.10"]
[Round "4.1"]
[White "Bures Jaroslav"]
[Black "Istona Martin"]
[Result "1/2-1/2"]
[ECO "D38"]
[WhiteElo "2396"]
[BlackElo "2267"]
[Annotator "ChessBase"]
[PlyCount "47"]
[EventDate "2020.08.07"]
[EventType "swiss"]
[EventCountry "SVK"]
[SourceTitle "playchess.com"]
[Source "ChessBase"]
[SourceQuality "1"]
[TimeControl "40/5400+30:1800+30"]

1. d4 {[%emt 0:00:00]} Nf6 {[%emt 0:05:54]} 2. c4 {[%emt 0:00:00]} e6 {[%emt 0:00:24]} 3. Nc3 {[%emt 0:00:00]} d5 {[%emt 0:00:18]} 4. cxd5 {[%emt 0:00:00]} exd5 {[%emt 0:00:05]} 5. Bg5 {[%emt 0:00:00]} Bb4 {[%emt 0:00:19]} 6. a3 {[%emt 0:00:58]} Bxc3+ {[%emt 0:01:03]} 7. bxc3 {[%emt 0:00:05]} h6 {[%emt 0:05:48]} 8. Bxf6 {[%emt 0:00:30]} Qxf6 {[%emt 0:00:30]} 9. e3 {[%emt 0:00:30]} O-O {[%emt 0:00:30]} 10. Nf3 {[%emt 0:00:52]} c5 {[%emt 0:04:00]} 11. Be2 {[%emt 0:01:12]} Be6 {[%emt 0:12:41]} 12. Rb1 {[%emt 0:04:27]} b6 {[%emt 0:02:53]} 13. O-O {[%emt 0:01:26]} Nd7 {[%emt 0:00:44]} 14. Nd2 {[%emt 0:02:45]} Rac8 {[%emt 0:04:30]} 15. Bf3 {[%emt 0:05:50]} Rfd8 {[%emt 0:07:28]} 16. Qa4 {[%emt 0:00:30]} Rc7 {[%emt 0:00:30]} 17. Rb2 {[%emt 0:00:31]} Qe7 {[%emt 0:08:03]} 18. h3 {[%emt 0:04:28]} Nf6 {[%emt 0:03:12]} 19. Ra1 {[%emt 0:01:27]} Rdc8 {[%emt 0:02:45]} 20. Qd1 {[%emt 0:00:30]} cxd4 {[%emt 0:03:32]} 21. cxd4 {[%emt 0:00:15]} Rc3 {[%emt 0:35:21]} 22. Rb3 {[%emt 1:14:44]} Qc7 {[%emt 0:00:30]} 23. Rxc3 {[%emt 0:00:30]} Qxc3 {[%emt 0:00:30]} 24. Nf1 {[%emt 0:00:30]} 1/2-1/2

[Event "Int SVK-ch Open 2020"]
[Site "Drienica"]
[Date "2020.08.10"]
[Round "4.1"]
[White "Socko, Weronika"]
[Black "Sevcikova, Lucia"]
[Result "1/2-1/2"]
[ECO "D08"]
[WhiteElo "1741"]
[BlackElo "2017"]
[Annotator "ChessBase"]
[PlyCount "71"]
[EventDate "2020.08.07"]
[EventType "swiss"]
[EventCountry "SVK"]
[SourceTitle "playchess.com"]
[Source "ChessBase"]
[SourceQuality "1"]
[TimeControl "40/5400+30:1800+30"]

1. d4 {[%emt 0:00:15]} d5 {[%emt 0:00:00]} 2. c4 {[%emt 0:00:11]} e5 {[%emt 0:00:00]} 3. cxd5 {[%emt 0:01:00]} Qxd5 {[%emt 0:00:00]} 4. dxe5 {[%emt 0:02:29]} Qxd1+ {[%emt 0:00:24]} 5. Kxd1 {[%emt 0:00:02]} Nc6 {[%emt 0:00:42]} 6. e4 {[%emt 0:04:00]} Nxe5 {[%emt 0:03:09]} 7. Be2 {[%emt 0:06:35]} Bc5 {[%emt 0:03:37]} 8. f3 {[%emt 0:05:28]} Be6 {[%emt 0:00:52]} 9. Bf4 {[%emt 0:09:22]} O-O-O+ {[%emt 0:01:33]} 10. Kc2 {[%emt 0:00:05]} Nc6 {[%emt 0:02:43]} 11. Nc3 {[%emt 0:03:39]} Nb4+ {[%emt 0:02:05]} 12. Kc1 {[%emt 0:02:16]} Ne7 {[%emt 0:02:30]} 13. a3 {[%emt 0:03:38]} Nd3+ {[%emt 0:00:36]} 14. Bxd3 {[%emt 0:00:07]} Rxd3 {[%emt 0:00:12]} 15. Kc2 {[%emt 0:02:05]} Rhd8 {[%emt 0:02:29]} 16. Nge2 {[%emt 0:00:47]} Bc4 {[%emt 0:10:52]} 17. b3 {[%emt 0:05:22]} Be6 {[%emt 0:00:38]} 18. b4 {[%emt 0:01:14]} Bb6 {[%emt 0:00:25]} 19. Rhd1 {[%emt 0:03:51]} Bc4 {[%emt 0:01:26]} 20. Rxd3 {[%emt 0:06:28]} Bxd3+ {[%emt 0:00:04]} 21. Kb3 {[%emt 0:03:15]} Bxe2 {[%emt 0:03:14]} 22. Nxe2 {[%emt 0:00:23]} Ng6 {[%emt 0:00:14]} 23. Bg3 {[%emt 0:03:01]} Be3 {[%emt 0:03:03]} 24. Ra2 {[%emt 0:01:44]} c6 {[%emt 0:02:06]} 25. Rc2 {[%emt 0:01:13]} Rd3+ {[%emt 0:04:13]} 26. Rc3 {[%emt 0:00:46]} Rxc3+ {[%emt 0:00:04]} 27. Kxc3 {[%emt 0:00:57]} Kd7 {[%emt 0:01:04]} 28. Kd3 {[%emt 0:01:32]} Bb6 {[%emt 0:00:18]} 29. Kc4 {[%emt 0:00:16]} Bc7 {[%emt 0:00:50]} 30. f4 {[%emt 0:03:43]} f6 {[%emt 0:02:47]} 31. Kd4 {[%emt 0:05:50]} a5 {[%emt 0:02:43]} 32. h3 {[%emt 0:06:16]} axb4 {[%emt 0:01:29]} 33. axb4 {[%emt 0:00:04]} Bb6+ {[%emt 0:03:59]} 34. Kc4 {[%emt 0:00:32]} Bc7 {[%emt 0:00:14]} 35. Kd4 {[%emt 0:05:41]} Bb6+ {[%emt 0:01:03]} 36. Kc4 {[%emt 0:00:42]} 1/2-1/2

[Event "Int SVK-ch Open 2020"]
[Site "Drienica"]
[Date "2020.08.10"]
[Round "4.2"]
[White "Frink Ferenc"]
[Black "Czebe Attila"]
[Result "0-1"]
[ECO "A05"]
[WhiteElo "2079"]
[BlackElo "2378"]
[Annotator "ChessBase"]
[PlyCount "50"]
[EventDate "2020.08.07"]
[EventType "swiss"]
[EventCountry "SVK"]
[SourceTitle "playchess.com"]
[Source "ChessBase"]
[SourceQuality "1"]
[TimeControl "40/5400+30:1800+30"]

1. Nf3 {[%emt 0:00:11]} Nf6 {[%emt 0:00:00]} 2. g3 {[%emt 0:00:11]} b5 {[%emt 0:01:18]} 3. Bg2 {[%emt 0:00:09]} Bb7 {[%emt 0:00:03]} 4. d3 {[%emt 0:00:31]} e6 {[%emt 0:00:57]} 5. O-O {[%emt 0:00:20]} Be7 {[%emt 0:00:15]} 6. Nbd2 {[%emt 0:01:43]} O-O {[%emt 0:00:16]} 7. e4 {[%emt 0:00:54]} c5 {[%emt 0:01:16]} 8. Re1 {[%emt 0:00:16]} Nc6 {[%emt 0:00:04]} 9. c3 {[%emt 0:00:23]} d6 {[%emt 0:04:24]} 10. Nf1 {[%emt 0:00:27]} a5 {[%emt 0:01:05]} 11. Nh4 {[%emt 0:00:43]} a4 {[%emt 0:00:19]} 12. f4 {[%emt 0:01:22]} b4 {[%emt 0:01:41]} 13. d4 {[%emt 0:05:17]} d5 {[%emt 0:03:11]} 14. e5 {[%emt 0:00:55]} Ne4 {[%emt 0:00:06]} 15. Be3 {[%emt 0:19:36]} a3 {[%emt 0:02:19]} 16. Qg4 {[%emt 0:18:22]} axb2 {[%emt 0:01:25]} 17. Rab1 {[%emt 0:00:24]} bxc3 {[%emt 0:01:28]} 18. f5 {[%emt 0:01:26]} Bxh4 {[%emt 0:01:47]} 19. Bxe4 {[%emt 0:06:43]} dxe4 {[%emt 0:00:04]} 20. Bh6 {[%emt 0:04:07]} Bg5 {[%emt 0:00:08]} 21. Bxg5 {[%emt 0:01:41]} exf5 {[%emt 0:00:08]} 22. Qxf5 {[%emt 0:03:16]} Qxd4+ {[%emt 0:00:10]} 23. Ne3 {[%emt 0:00:11]} Nxe5 {[%emt 0:00:27]} 24. Kg2 {[%emt 0:03:29]} Qd2+ {[%emt 0:01:20]} 25. Kh3 {[%emt 0:00:14]} Bc8 {[%emt 0:00:04]} 0-1

[Event "Int SVK-ch Open 2020"]
[Site "Drienica"]
[Date "2020.08.10"]
[Round "4.3"]
[White "Manik Mikulas"]
[Black "Brnusak Tomas"]
[Result "1-0"]
[ECO "B42"]
[WhiteElo "2366"]
[BlackElo "2064"]
[Annotator "RC"]
[PlyCount "87"]
[EventDate "2020.08.07"]
[EventType "swiss"]
[EventCountry "SVK"]
[SourceTitle "playchess.com"]
[Source "ChessBase"]
[SourceQuality "1"]
[TimeControl "40/5400+30:1800+30"]

1. e4 {[%emt 0:02:18]} c5 {[%emt 0:00:10]} 2. Nf3 {[%emt 0:00:05]} e6 {[%emt 0:00:32]} 3. d4 {[%emt 0:00:03]} cxd4 {[%emt 0:00:38]} 4. Nxd4 {[%emt 0:00:03]} a6 {[%emt 0:00:36]} 5. Bd3 {[%emt 0:00:03]} Qc7 {[%emt 0:00:28]} 6. Qe2 {[%emt 0:00:05]} d6 {[%emt 0:00:43]} 7. O-O {[%emt 0:00:48]} Nf6 {[%emt 0:00:45]} 8. f4 {[%emt 0:04:45]} g6 {[%emt 0:01:45]} 9. a4 {[%emt 0:23:15]} Bg7 {[%emt 0:02:08]} 10. a5 {[%emt 0:07:11]} O-O {[%emt 0:03:27]} 11. Nb3 {[%emt 0:00:12]} Nc6 {[%emt 0:07:02]} 12. Nc3 {[%emt 0:00:09]} e5 {[%emt 0:04:55]} 13. fxe5 {[%emt 0:05:18]} Nxe5 {[%emt 0:12:16]} 14. Bg5 {[%emt 0:00:53]} Bg4 {[%emt 0:00:38]} 15. Qd2 {[%emt 0:01:43]} Ned7 {[%emt 0:00:34]} 16. Bxf6 {[%emt 0:03:43]} Nxf6 {[%emt 0:00:57]} 17. Rxf6 {[%emt 0:00:20]} Bxf6 {[%emt 0:00:11]} 18. Nd5 {[%emt 0:00:03]} Qd8 {[%emt 0:00:11]} 19. Qf4 {[%emt 0:00:12]} Bxb2 {[%emt 0:00:21]} 20. Rb1 {[%emt 0:00:12]} Be6 {[%emt 0:02:25]} 21. Rxb2 {[%emt 0:00:07]} Bxd5 {[%emt 0:00:10]} 22. exd5 {[%emt 0:00:03]} Rc8 {[%emt 0:01:45]} 23. Rb1 {[%emt 0:05:51]} Re8 {[%emt 0:15:47]} 24. Nd2 {[%emt 0:06:36]} Qxa5 {[%emt 0:15:10]} 25. Ne4 {[%emt 0:05:25]} Rxe4 {[%emt 0:00:13]} 26. Qxe4 {[%emt 0:00:39]} Qc5+ {[%emt 0:01:19]} 27. Kh1 {[%emt 0:00:06]} b5 {[%emt 0:00:15]} 28. h3 {[%emt 0:02:33]} Rb8 {[%emt 0:02:21]} 29. Ra1 {[%emt 0:01:49]} Kf8 {[%emt 0:04:55]} 30. Rxa6 {[%emt 0:05:16]} Re8 {[%emt 0:00:23]} 31. Qh4 {[%emt 0:00:43]} Qc3 {[%emt 0:00:58]} 32. Kh2 {[%emt 0:01:46]} Qe5+ {[%emt 0:02:31]} 33. Qg3 {[%emt 0:00:14]} Qxd5 {[%emt 0:00:06]} 34. Qxd6+ {[%emt 0:00:14]} Qxd6+ {[%emt 0:00:06]} 35. Rxd6 {[%emt 0:00:05]} Rb8 {[%emt 0:00:09]} 36. Rd5 {[%emt 0:00:15]} b4 {[%emt 0:00:13]} 37. Rd7 {[%emt 0:00:05]} Ke8 {[%emt 0:00:35]} 38. Rc7 {[%emt 0:00:12]} b3 {[%emt 0:00:05]} 39. cxb3 {[%emt 0:00:05]} Rxb3 {[%emt 0:00:07]} 40. Bc4 {[%emt 0:00:09]} Rb6 {[%emt 0:00:08]} 41. Bxf7+ {[%emt 0:30:35]} Kd8 {[%emt 0:30:06]} 42. Ra7 {[%emt 0:00:05]} h6 {[%emt 0:00:09]} 43. Bc4 {[%emt 0:00:25]} g5 {[%emt 0:00:14]} 44. Ra6 {[%emt 0:00:11]} 1-0

[Event "Int SVK-ch Open 2020"]
[Site "Drienica"]
[Date "2020.08.10"]
[Round "4.3"]
[White "Sankova, Stella"]
[Black "Tomcikova, Zuzana"]
[Result "1-0"]
[ECO "C11"]
[WhiteElo "1990"]
[BlackElo "1785"]
[Annotator "ChessBase"]
[PlyCount "47"]
[EventDate "2020.08.07"]
[EventType "swiss"]
[EventCountry "SVK"]
[SourceTitle "playchess.com"]
[Source "ChessBase"]
[SourceQuality "1"]
[TimeControl "40/5400+30:1800+30"]

1. e4 {[%emt 0:00:00]} e6 {[%emt 0:00:00]} 2. d4 {[%emt 0:00:00]} d5 {[%emt 0:00:00]} 3. Nc3 {[%emt 0:00:30]} Nf6 {[%emt 0:00:14]} 4. e5 {[%emt 0:00:24]} Nfd7 {[%emt 0:00:06]} 5. f4 {[%emt 0:00:04]} c5 {[%emt 0:00:31]} 6. Nf3 {[%emt 0:00:13]} Nc6 {[%emt 0:00:25]} 7. Be3 {[%emt 0:00:17]} a6 {[%emt 0:00:47]} 8. Qd2 {[%emt 0:00:36]} b5 {[%emt 0:00:25]} 9. a3 {[%emt 0:01:01]} Qb6 {[%emt 0:03:21]} 10. Ne2 {[%emt 0:06:47]} Bb7 {[%emt 0:06:29]} 11. Ng3 {[%emt 0:04:13]} cxd4 {[%emt 0:11:02]} 12. Nxd4 {[%emt 0:00:04]} Nxd4 {[%emt 0:00:22]} 13. Bxd4 {[%emt 0:00:05]} Bc5 {[%emt 0:01:02]} 14. c3 {[%emt 0:00:39]} Qc7 {[%emt 0:04:17]} 15. Bd3 {[%emt 0:02:32]} O-O {[%emt 0:21:18]} 16. O-O {[%emt 0:03:26]} Rac8 {[%emt 0:02:21]} 17. Rae1 {[%emt 0:02:21]} Rfe8 {[%emt 0:04:54]} 18. Kh1 {[%emt 0:06:01]} Bf8 {[%emt 0:01:28]} 19. f5 {[%emt 0:04:03]} exf5 20. Bxf5 {[%emt 0:03:24]} g6 {[%emt 0:17:03]} 21. e6 {[%emt 0:02:55]} fxe6 {[%emt 0:01:31]} 22. Bxe6+ {[%emt 0:00:51]} Rxe6 {[%emt 0:00:06]} 23. Rxe6 {[%emt 0:00:06]} Rd8 {[%emt 0:06:01]} 24. Qg5 {[%emt 0:02:59]} 1-0

[Event "Int SVK-ch Open 2020"]
[Site "Drienica"]
[Date "2020.08.10"]
[Round "4.4"]
[White "Sedlakova, Ivana"]
[Black "Bochnickova, Simona"]
[Result "0-1"]
[ECO "D63"]
[WhiteElo "1983"]
[BlackElo "1785"]
[Annotator "ChessBase"]
[PlyCount "76"]
[EventDate "2020.08.07"]
[EventType "swiss"]
[EventCountry "SVK"]
[SourceTitle "playchess.com"]
[Source "ChessBase"]
[SourceQuality "1"]
[TimeControl "40/5400+30:1800+30"]

1. d4 {[%emt 0:00:38]} d5 {[%emt 0:00:00]} 2. c4 {[%emt 0:00:05]} e6 {[%emt 0:00:00]} 3. Nc3 {[%emt 0:00:07]} Nf6 {[%emt 0:00:00]} 4. Bg5 {[%emt 0:00:07]} Be7 {[%emt 0:00:06]} 5. e3 {[%emt 0:00:08]} O-O {[%emt 0:00:08]} 6. Nf3 {[%emt 0:00:04]} Nbd7 {[%emt 0:00:21]} 7. Rc1 {[%emt 0:01:00]} b6 {[%emt 0:00:10]} 8. cxd5 {[%emt 0:01:38]} exd5 {[%emt 0:00:08]} 9. Bd3 {[%emt 0:14:21]} Bb7 {[%emt 0:00:15]} 10. O-O {[%emt 0:02:16]} h6 {[%emt 0:00:07]} 11. Bxf6 {[%emt 0:08:52]} Nxf6 {[%emt 0:00:23]} 12. Qe2 {[%emt 0:06:20]} c5 {[%emt 0:03:34]} 13. dxc5 {[%emt 0:03:12]} bxc5 {[%emt 0:00:22]} 14. Rfd1 {[%emt 0:00:46]} Qb6 {[%emt 0:01:26]} 15. e4 {[%emt 0:21:24]} d4 {[%emt 0:05:36]} 16. Na4 {[%emt 0:01:58]} Qa5 {[%emt 0:01:18]} 17. b3 {[%emt 0:03:03]} Bd6 {[%emt 0:01:31]} 18. Qc2 {[%emt 0:12:34]} Rac8 {[%emt 0:02:26]} 19. g3 {[%emt 0:02:53]} Rfe8 {[%emt 0:01:29]} 20. Re1 {[%emt 0:02:40]} Nd7 {[%emt 0:03:14]} 21. Nb2 {[%emt 0:01:49]} Qc7 {[%emt 0:03:26]} 22. Nc4 {[%emt 0:00:12]} Nb6 {[%emt 0:01:42]} 23. Nxd6 {[%emt 0:04:13]} Qxd6 {[%emt 0:00:22]} 24. e5 {[%emt 0:01:12]} Qc7 {[%emt 0:01:52]} 25. Be4 {[%emt 0:04:13]} Nd5 {[%emt 0:02:53]} 26. Nxd4 {[%emt 0:02:25]} Rxe5 {[%emt 0:02:09]} 27. Nb5 {[%emt 0:00:13]} Qe7 {[%emt 0:04:04]} 28. Bh7+ {[%emt 0:02:37]} Kh8 {[%emt 0:00:55]} 29. Rxe5 {[%emt 0:00:31]} Qxe5 {[%emt 0:00:03]} 30. Qf5 {[%emt 0:01:30]} Qe7 {[%emt 0:08:04]} 31. Qb1 {[%emt 0:00:13]} g6 {[%emt 0:05:35]} 32. Bxg6 {[%emt 0:00:08]} fxg6 {[%emt 0:00:05]} 33. Qxg6 {[%emt 0:00:07]} Rc6 {[%emt 0:06:33]} 34. Qc2 {[%emt 0:01:48]} Re6 {[%emt 0:00:34]} 35. Kf1 {[%emt 0:00:50]} Qf6 {[%emt 0:14:04]} 36. Qxc5 {[%emt 0:01:17]} Qf3 {[%emt 0:01:33]} 37. Qd4+ {[%emt 0:00:31]} Kg8 {[%emt 0:00:07]} 38. Kg1 {[%emt 0:00:18]} Nc7 {[%emt 0:01:13]} 0-1

[Event "Int SVK-ch Open 2020"]
[Site "Drienica"]
[Date "2020.08.10"]
[Round "4.5"]
[White "Panko, Radoslav"]
[Black "Juhar Roman"]
[Result "1/2-1/2"]
[ECO "B00"]
[WhiteElo "2031"]
[BlackElo "2225"]
[Annotator "RC"]
[PlyCount "82"]
[EventDate "2020.08.07"]
[EventType "swiss"]
[EventCountry "SVK"]
[SourceTitle "playchess.com"]
[Source "ChessBase"]
[SourceQuality "1"]
[TimeControl "40/5400+30:1800+30"]

1. f4 {[%emt 0:00:00]} b6 {[%emt 0:00:29]} 2. e4 {[%emt 0:01:00]} Bb7 {[%emt 0:00:05]} 3. d3 {[%emt 0:00:17]} g6 {[%emt 0:00:27]} 4. Nf3 {[%emt 0:00:08]} Bg7 {[%emt 0:00:06]} 5. Be2 {[%emt 0:00:14]} e6 {[%emt 0:00:07]} 6. c4 {[%emt 0:02:10]} Ne7 {[%emt 0:00:34]} 7. Nc3 {[%emt 0:00:24]} f5 {[%emt 0:01:10]} 8. e5 {[%emt 0:02:31]} d6 {[%emt 0:02:03]} 9. d4 {[%emt 0:04:58]} dxe5 {[%emt 0:01:09]} 10. dxe5 {[%emt 0:03:25]} Qxd1+ {[%emt 0:00:17]} 11. Bxd1 {[%emt 0:00:24]} h6 {[%emt 0:01:34]} 12. Nb5 {[%emt 0:04:26]} Na6 {[%emt 0:02:26]} 13. O-O {[%emt 0:08:12]} Kf7 {[%emt 0:01:31]} 14. a3 {[%emt 0:03:15]} Rhd8 {[%emt 0:01:49]} 15. Be3 {[%emt 0:01:03]} Be4 {[%emt 0:00:24]} 16. Be2 {[%emt 0:00:41]} Bd3 {[%emt 0:00:51]} 17. Kf2 {[%emt 0:01:00]} Nc6 {[%emt 0:01:26]} 18. b4 {[%emt 0:02:02]} g5 {[%emt 0:01:02]} 19. g3 {[%emt 0:03:56]} Rd7 {[%emt 0:06:37]} 20. Rad1 {[%emt 0:06:30]} Rad8 {[%emt 0:00:52]} 21. Nc3 {[%emt 0:00:37]} g4 {[%emt 0:00:36]} 22. Ng1 {[%emt 0:08:59]} Nab8 {[%emt 0:05:08]} 23. Bxd3 {[%emt 0:02:41]} Rxd3 {[%emt 0:02:00]} 24. Rxd3 {[%emt 0:00:06]} Rxd3 {[%emt 0:00:04]} 25. Nge2 {[%emt 0:00:05]} Bf8 {[%emt 0:05:44]} 26. Rd1 {[%emt 0:00:23]} Rxd1 {[%emt 0:01:23]} 27. Nxd1 {[%emt 0:00:02]} Ke8 {[%emt 0:00:35]} 28. Ke1 {[%emt 0:01:35]} Kd7 {[%emt 0:01:27]} 29. Kd2 {[%emt 0:00:08]} h5 {[%emt 0:01:46]} 30. Nf2 {[%emt 0:00:36]} Ne7 {[%emt 0:00:10]} 31. Nd3 {[%emt 0:00:33]} Ng6 {[%emt 0:00:08]} 32. Kc3 {[%emt 0:01:39]} Nc6 {[%emt 0:01:32]} 33. c5 {[%emt 0:00:40]} Bh6 {[%emt 0:00:52]} 34. Bf2 {[%emt 0:03:10]} Nce7 {[%emt 0:00:30]} 35. Kc4 {[%emt 0:02:52]} Nc6 {[%emt 0:07:17]} 36. Kb5 {[%emt 0:11:29]} Nb8 {[%emt 0:00:48]} 37. a4 {[%emt 0:00:21]} Ne7 {[%emt 0:03:30]} 38. Nd4 {[%emt 0:21:11]} Bf8 {[%emt 0:07:56]} 39. Nb3 {[%emt 0:03:35]} Nd5 {[%emt 0:01:47]} 40. cxb6 {[%emt 0:01:26]} cxb6 {[%emt 0:00:31]} 41. Kc4 {[%emt 0:04:07]} a6 {[%emt 0:03:59]} 1/2-1/2

[Event "Int SVK-ch Open 2020"]
[Site "Drienica"]
[Date "2020.08.10"]
[Round "4.5"]
[White "Strapec, Lukas"]
[Black "Skovran, Jaroslav"]
[Result "1/2-1/2"]
[ECO "D37"]
[WhiteElo "1517"]
[BlackElo "1975"]
[Annotator "ChessBase"]
[PlyCount "62"]
[EventDate "2020.08.07"]
[EventType "swiss"]
[EventCountry "SVK"]
[SourceTitle "playchess.com"]
[Source "ChessBase"]
[SourceQuality "1"]
[TimeControl "40/5400+30:1800+30"]

1. d4 d5 {[%emt 0:01:45]} 2. Nf3 {[%emt 0:00:27]} Nf6 {[%emt 0:00:13]} 3. c4 {[%emt 0:01:12]} e6 {[%emt 0:00:17]} 4. Nc3 {[%emt 0:01:32]} Be7 {[%emt 0:03:01]} 5. Bf4 {[%emt 0:01:44]} c6 {[%emt 0:00:36]} 6. e3 {[%emt 0:03:06]} O-O {[%emt 0:01:32]} 7. Qc2 {[%emt 0:03:40]} Nbd7 {[%emt 0:00:45]} 8. Bd3 {[%emt 0:05:56]} Re8 {[%emt 0:00:34]} 9. O-O {[%emt 0:05:36]} Nf8 {[%emt 0:01:20]} 10. Rab1 {[%emt 0:16:08]} Nh5 {[%emt 0:17:53]} 11. Be5 {[%emt 0:09:36]} f6 {[%emt 0:07:07]} 12. Bg3 {[%emt 0:04:36]} g6 {[%emt 0:04:26]} 13. b4 {[%emt 0:06:45]} Nxg3 {[%emt 0:04:34]} 14. hxg3 {[%emt 0:06:26]} a6 {[%emt 0:04:32]} 15. a4 {[%emt 0:07:29]} b6 {[%emt 0:06:57]} 16. b5 {[%emt 0:07:19]} dxc4 {[%emt 0:05:36]} 17. Bxc4 {[%emt 0:01:07]} cxb5 {[%emt 0:00:27]} 18. axb5 {[%emt 0:01:13]} a5 {[%emt 0:00:13]} 19. Qe4 {[%emt 0:03:15]} Rb8 {[%emt 0:01:12]} 20. Rfd1 {[%emt 0:05:24]} Bd6 {[%emt 0:04:11]} 21. Rbc1 {[%emt 0:05:18]} Kg7 {[%emt 0:00:33]} 22. Ne2 {[%emt 0:01:31]} Bb7 {[%emt 0:00:36]} 23. Qd3 {[%emt 0:01:14]} Qe7 {[%emt 0:01:39]} 24. e4 {[%emt 0:00:38]} Rbd8 {[%emt 0:01:15]} 25. d5 {[%emt 0:00:43]} exd5 {[%emt 0:00:23]} 26. exd5 {[%emt 0:00:28]} Ba3 {[%emt 0:03:16]} 27. Rc2 {[%emt 0:00:32]} Bc5 {[%emt 0:02:26]} 28. Nf4 {[%emt 0:00:28]} Qd6 {[%emt 0:01:00]} 29. Re2 {[%emt 0:00:29]} Bc8 {[%emt 0:01:51]} 30. Rde1 {[%emt 0:00:29]} Bd7 {[%emt 0:01:58]} 31. Rxe8 {[%emt 0:00:17]} Rxe8 1/2-1/2

[Event "Int SVK-ch Open 2020"]
[Site "Drienica"]
[Date "2020.08.10"]
[Round "4.6"]
[White "Tomcik, Milan"]
[Black "Paluska, Karol"]
[Result "0-1"]
[ECO "B10"]
[WhiteElo "1963"]
[BlackElo "1871"]
[Annotator "ChessBase"]
[PlyCount "72"]
[EventDate "2020.08.07"]
[EventType "swiss"]
[EventCountry "SVK"]
[SourceTitle "playchess.com"]
[Source "ChessBase"]
[SourceQuality "1"]
[TimeControl "40/5400+30:1800+30"]

1. e4 c6 {[%emt 0:00:00]} 2. Nc3 {[%emt 0:02:45]} d5 {[%emt 0:00:02]} 3. Nf3 {[%emt 0:00:09]} Nf6 {[%emt 0:00:36]} 4. e5 {[%emt 0:00:11]} Ne4 {[%emt 0:00:05]} 5. Ne2 {[%emt 0:00:33]} Qb6 {[%emt 0:00:18]} 6. d4 {[%emt 0:00:27]} e6 {[%emt 0:00:19]} 7. Nfg1 {[%emt 0:00:29]} f6 {[%emt 0:00:51]} 8. f3 {[%emt 0:00:10]} Ng5 {[%emt 0:00:05]} 9. exf6 {[%emt 0:00:39]} gxf6 {[%emt 0:00:36]} 10. f4 {[%emt 0:00:23]} Nf7 {[%emt 0:03:39]} 11. Nf3 {[%emt 0:04:16]} c5 {[%emt 0:00:30]} 12. Ng3 {[%emt 0:33:56]} Nc6 {[%emt 0:10:05]} 13. dxc5 {[%emt 0:01:44]} Bxc5 {[%emt 0:00:26]} 14. Nh5 {[%emt 0:00:27]} Bf2+ {[%emt 0:39:10]} 15. Ke2 {[%emt 0:00:08]} Ke7 {[%emt 0:00:14]} 16. c3 {[%emt 0:00:10]} Nd6 {[%emt 0:01:05]} 17. Qd3 {[%emt 0:05:32]} Bd7 {[%emt 0:04:05]} 18. a4 {[%emt 0:06:08]} a5 {[%emt 0:15:55]} 19. g4 {[%emt 0:03:09]} Ne4 {[%emt 0:01:18]} 20. g5 {[%emt 0:14:02]} f5 {[%emt 0:04:46]} 21. Nf6 {[%emt 0:07:11]} Nxf6 {[%emt 0:06:50]} 22. gxf6+ {[%emt 0:00:11]} Kxf6 {[%emt 0:00:16]} 23. Ne5 {[%emt 0:01:01]} Nxe5 {[%emt 0:02:01]} 24. fxe5+ {[%emt 0:00:14]} Ke7 {[%emt 0:04:33]} 25. Bg5+ {[%emt 0:01:29]} Kf7 {[%emt 0:00:46]} 26. Rd1 {[%emt 0:03:46]} Bxa4 {[%emt 0:00:59]} 27. b3 {[%emt 0:02:04]} Qxb3 {[%emt 0:01:16]} 28. Qb1 {[%emt 0:01:14]} Qxd1+ {[%emt 0:00:32]} 29. Qxd1 {[%emt 0:00:38]} Bxd1+ {[%emt 0:00:03]} 30. Kxd1 {[%emt 0:00:20]} a4 {[%emt 0:00:14]} 31. Kc2 {[%emt 0:03:11]} Rhg8 {[%emt 0:00:22]} 32. h4 {[%emt 0:01:50]} Rg6 {[%emt 0:02:21]} 33. Be2 {[%emt 0:00:16]} h6 {[%emt 0:00:25]} 34. Bh5 {[%emt 0:02:45]} hxg5 {[%emt 0:00:04]} 35. hxg5 {[%emt 0:00:05]} a3 {[%emt 0:00:17]} 36. Rb1 {[%emt 0:04:10]} b6 {[%emt 0:00:21]} 0-1